[Event "Early-Titled-Tuesday-Blitz-April-02-2024"]
[Site "Chess.com"]
[Date "2024.04.02"]
[Round "5"]
[White "joselito22"]
[Black "ajedrezsinlimites"]
[Result "0-1"]
[WhiteElo "2195"]
[BlackElo "2552"]
[TimeControl "180+1"]
[EndTime "8:54:28 PDT"]
[Termination "ajedrezsinlimites won by resignation"]

1. e4 {[%clk 0:03:00.9]} 1... c6 {[%clk 0:02:35.6]} 2. d4 {[%clk 0:02:59.4]}
2... d5 {[%clk 0:02:35.9]} 3. exd5 {[%clk 0:02:58.9]} 3... cxd5 {[%clk
0:02:36.8]} 4. Bd3 {[%clk 0:02:58.1]} 4... Nf6 {[%clk 0:02:37.7]} 5. c3 {[%clk
0:02:57.8]} 5... Nc6 {[%clk 0:02:38.6]} 6. Bf4 {[%clk 0:02:57]} 6... Bg4 {[%clk
0:02:39]} 7. Qb3 {[%clk 0:02:55.9]} 7... Na5 {[%clk 0:02:39.3]} 8. Qa4+ {[%clk
0:02:55.4]} 8... Bd7 {[%clk 0:02:40]} 9. Qc2 {[%clk 0:02:54.5]} 9... Qb6 {[%clk
0:02:40.6]} 10. Nd2 {[%clk 0:02:43.6]} 10... Bb5 {[%clk 0:02:38.7]} 11. Ngf3
{[%clk 0:02:39.6]} 11... Rc8 {[%clk 0:02:39.3]} 12. Bxb5+ {[%clk 0:02:28.9]}
12... Qxb5 {[%clk 0:02:38.5]} 13. Nb3 {[%clk 0:02:22.8]} 13... e6 {[%clk
0:02:31.1]} 14. Nxa5 {[%clk 0:02:20.7]} 14... Qxa5 {[%clk 0:02:31.2]} 15. O-O
{[%clk 0:02:19.9]} 15... Be7 {[%clk 0:02:31.6]} 16. Ne5 {[%clk 0:02:16.7]} 16...
O-O {[%clk 0:02:31.6]} 17. Nd3 {[%clk 0:02:13.1]} 17... Qb6 {[%clk 0:02:27.7]}
18. Qb3 {[%clk 0:02:09.2]} 18... Qa6 {[%clk 0:02:25.4]} 19. Rad1 {[%clk
0:02:03]} 19... Rfd8 {[%clk 0:02:16.3]} 20. Bg5 {[%clk 0:02:00.6]} 20... b6
{[%clk 0:02:13.9]} 21. Rfe1 {[%clk 0:01:59.8]} 21... h6 {[%clk 0:02:13.8]} 22.
Bxf6 {[%clk 0:01:56]} 22... Bxf6 {[%clk 0:02:13.7]} 23. Re3 {[%clk 0:01:53.7]}
23... Qc4 {[%clk 0:02:13.7]} 24. Qxc4 {[%clk 0:01:50.2]} 24... Rxc4 {[%clk
0:02:14.6]} 25. Kf1 {[%clk 0:01:41.3]} 25... a5 {[%clk 0:02:13.1]} 26. Ke2
{[%clk 0:01:38.2]} 26... Rdc8 {[%clk 0:02:13]} 27. Kd2 {[%clk 0:01:32]} 27... b5
{[%clk 0:02:11.1]} 28. a3 {[%clk 0:01:19.3]} 28... b4 {[%clk 0:02:06.5]} 29.
axb4 {[%clk 0:01:18.1]} 29... axb4 {[%clk 0:02:06.7]} 30. Ne5 {[%clk 0:00:42.5]}
30... Bxe5 {[%clk 0:02:02.7]} 31. dxe5 {[%clk 0:00:41.1]} 31... bxc3+ {[%clk
0:01:59.2]} 32. Rxc3 {[%clk 0:00:38.8]} 32... Rxc3 {[%clk 0:01:59.5]} 33. bxc3
{[%clk 0:00:38.4]} 33... Rc4 {[%clk 0:01:55.5]} 34. f3 {[%clk 0:00:32.5]} 34...
g5 {[%clk 0:01:55]} 35. Rb1 {[%clk 0:00:30.2]} 35... Ra4 {[%clk 0:01:54.4]} 36.
Rb2 {[%clk 0:00:25.9]} 36... Ra1 {[%clk 0:01:53.6]} 37. Ke3 {[%clk 0:00:22.2]}
37... Rc1 {[%clk 0:01:50.1]} 38. Kd3 {[%clk 0:00:19.6]} 38... Kg7 {[%clk
0:01:49.3]} 39. h3 {[%clk 0:00:18.4]} 39... h5 {[%clk 0:01:48.8]} 40. Re2 {[%clk
0:00:16.6]} 40... Kg6 {[%clk 0:01:48.1]} 41. Re3 {[%clk 0:00:12.6]} 41... Kf5
{[%clk 0:01:44.5]} 42. g4+ {[%clk 0:00:12.2]} 42... hxg4 {[%clk 0:01:43.5]} 43.
hxg4+ {[%clk 0:00:12.2]} 43... Kf4 {[%clk 0:01:43.6]} 44. Kd2 {[%clk 0:00:12]}
44... Rd1+ {[%clk 0:01:38.8]} 45. Ke2 {[%clk 0:00:11.9]} 45... Re1+ {[%clk
0:01:38.3]} 46. Kxe1 {[%clk 0:00:11.7]} 46... Kxe3 {[%clk 0:01:38.7]} 0-1

[Event "Early-Titled-Tuesday-Blitz-April-02-2024"]
[Site "Chess.com"]
[Date "2024.04.02"]
[Round "5"]
[White "Likvidator228"]
[Black "MarcoRiehle"]
[Result "0-1"]
[WhiteElo "2565"]
[BlackElo "2779"]
[TimeControl "180+1"]
[EndTime "8:54:30 PDT"]
[Termination "MarcoRiehle won on time"]

1. d4 {[%clk 0:02:52.6]} 1... d5 {[%clk 0:02:54.6]} 2. Bf4 {[%clk 0:02:52.4]}
2... h5 {[%clk 0:02:52.8]} 3. e3 {[%clk 0:02:52.3]} 3... e5 {[%clk 0:02:50.5]}
4. Bxe5 {[%clk 0:01:56.6]} 4... f6 {[%clk 0:02:47.6]} 5. Bd3 {[%clk 0:01:54.1]}
5... fxe5 {[%clk 0:02:47.7]} 6. Bg6+ {[%clk 0:01:54.2]} 6... Kd7 {[%clk
0:02:47.8]} 7. dxe5 {[%clk 0:01:50.5]} 7... c6 {[%clk 0:02:47.6]} 8. Bxh5 {[%clk
0:01:48.9]} 8... Kc7 {[%clk 0:02:47.1]} 9. Be2 {[%clk 0:01:40.4]} 9... Qg5
{[%clk 0:02:40.4]} 10. Nf3 {[%clk 0:01:34.5]} 10... Qxg2 {[%clk 0:02:39.7]} 11.
Rg1 {[%clk 0:01:34.8]} 11... Qh3 {[%clk 0:02:40.1]} 12. Nc3 {[%clk 0:01:32.1]}
12... Bf5 {[%clk 0:02:24.6]} 13. Qd4 {[%clk 0:01:01.4]} 13... Nd7 {[%clk
0:02:19.1]} 14. O-O-O {[%clk 0:00:57.4]} 14... Bc5 {[%clk 0:02:14.7]} 15. Qf4
{[%clk 0:00:51.1]} 15... g6 {[%clk 0:02:09.7]} 16. e4 {[%clk 0:00:20.2]} 16...
dxe4 {[%clk 0:02:07.7]} 17. Nxe4 {[%clk 0:00:19.9]} 17... Bxe4 {[%clk
0:02:05.2]} 18. Qxe4 {[%clk 0:00:20.1]} 18... Ne7 {[%clk 0:02:05]} 19. e6 {[%clk
0:00:18.8]} 19... Nf8 {[%clk 0:01:40.5]} 20. Qe5+ {[%clk 0:00:18.7]} 20... Kb6
{[%clk 0:01:41.1]} 21. Rd3 {[%clk 0:00:13.9]} 21... a5 {[%clk 0:01:24.5]} 22.
Rb3+ {[%clk 0:00:13.1]} 22... Bb4 {[%clk 0:01:25.2]} 23. a3 {[%clk 0:00:13.5]}
23... Qxe6 {[%clk 0:01:24.5]} 24. Qxe6 {[%clk 0:00:07.8]} 24... Nxe6 {[%clk
0:01:25.4]} 25. axb4 {[%clk 0:00:08.3]} 25... Nd5 {[%clk 0:01:23.4]} 26. bxa5+
{[%clk 0:00:08.3]} 26... Kc7 {[%clk 0:01:24.1]} 27. Rxg6 {[%clk 0:00:07.5]}
27... Ndf4 {[%clk 0:01:23.8]} 28. Rxe6 {[%clk 0:00:03.4]} 28... Nxe6 {[%clk
0:01:24.7]} 29. Bd3 {[%clk 0:00:03.9]} 29... Rxa5 {[%clk 0:01:23]} 30. Rc3
{[%clk 0:00:03.3]} 30... Rf8 {[%clk 0:01:22.1]} 31. Be2 {[%clk 0:00:01.6]} 31...
Nf4 {[%clk 0:01:17.3]} 32. Kd2 {[%clk 0:00:01.8]} 32... Rd5+ {[%clk 0:01:15]}
33. Rd3 {[%clk 0:00:02]} 33... Nxd3 {[%clk 0:01:14.4]} 0-1

[Event "Early-Titled-Tuesday-Blitz-April-02-2024"]
[Site "Chess.com"]
[Date "2024.04.02"]
[Round "5"]
[White "djano"]
[Black "Radzio1987"]
[Result "0-1"]
[WhiteElo "2668"]
[BlackElo "2901"]
[TimeControl "180+1"]
[EndTime "8:54:34 PDT"]
[Termination "Radzio1987 won by checkmate"]

1. e4 {[%clk 0:03:00.9]} 1... c6 {[%clk 0:02:57.5]} 2. d4 {[%clk 0:03:00.3]}
2... d5 {[%clk 0:02:58.4]} 3. exd5 {[%clk 0:03:00.8]} 3... cxd5 {[%clk
0:02:59.3]} 4. Bd3 {[%clk 0:03:00.6]} 4... Nc6 {[%clk 0:02:59.3]} 5. c3 {[%clk
0:03:01]} 5... e6 {[%clk 0:02:59.6]} 6. Bf4 {[%clk 0:02:54.1]} 6... Bd6 {[%clk
0:02:59.4]} 7. Bxd6 {[%clk 0:02:52.4]} 7... Qxd6 {[%clk 0:03:00.3]} 8. Nf3
{[%clk 0:02:51.3]} 8... Nge7 {[%clk 0:03:00.2]} 9. Nbd2 {[%clk 0:02:49.4]} 9...
O-O {[%clk 0:02:59.5]} 10. Bxh7+ {[%clk 0:02:32.3]} 10... Kxh7 {[%clk
0:02:59.1]} 11. Ng5+ {[%clk 0:02:32.5]} 11... Kg6 {[%clk 0:02:53.7]} 12. Ndf3
{[%clk 0:01:21.4]} 12... f6 {[%clk 0:02:49.6]} 13. Qd3+ {[%clk 0:01:12.9]} 13...
Nf5 {[%clk 0:02:43.1]} 14. g4 {[%clk 0:00:58.6]} 14... fxg5 {[%clk 0:02:42]} 15.
gxf5+ {[%clk 0:00:54.2]} 15... Rxf5 {[%clk 0:02:34]} 16. Rg1 {[%clk 0:00:53.8]}
16... Kf6 {[%clk 0:02:27.6]} 17. h4 {[%clk 0:00:36.9]} 17... Qf4 {[%clk
0:02:24.9]} 18. hxg5+ {[%clk 0:00:22.4]} 18... Ke7 {[%clk 0:02:24.5]} 19. Rg3
{[%clk 0:00:22.7]} 19... Bd7 {[%clk 0:02:15.7]} 20. Kf1 {[%clk 0:00:16.4]} 20...
Raf8 {[%clk 0:01:35.5]} 21. Re1 {[%clk 0:00:15.6]} 21... Kd8 {[%clk 0:01:35.8]}
22. Qb5 {[%clk 0:00:12.2]} 22... Kc7 {[%clk 0:01:33]} 23. Qc5 {[%clk 0:00:09.1]}
23... Kb8 {[%clk 0:01:26.3]} 24. g6 {[%clk 0:00:07.8]} 24... Qc7 {[%clk
0:01:18.5]} 25. Re3 {[%clk 0:00:07.1]} 25... Bc8 {[%clk 0:01:13]} 26. Ng5 {[%clk
0:00:06]} 26... Rxf2+ {[%clk 0:01:10.5]} 27. Kg1 {[%clk 0:00:06.4]} 27... b6
{[%clk 0:01:07.1]} 28. Qa3 {[%clk 0:00:05.3]} 28... Qf4 {[%clk 0:01:02.6]} 29.
Nf7 {[%clk 0:00:05.2]} 29... Rf1+ {[%clk 0:01:00.9]} 30. Kg2 {[%clk 0:00:05.3]}
30... Qf2+ {[%clk 0:00:59.7]} 31. Kh3 {[%clk 0:00:05.6]} 31... Rh1+ {[%clk
0:00:59.7]} 32. Kg4 {[%clk 0:00:05.4]} 32... Qf5# {[%clk 0:01:00.3]} 0-1

[Event "Early-Titled-Tuesday-Blitz-April-02-2024"]
[Site "Chess.com"]
[Date "2024.04.02"]
[Round "5"]
[White "whiteglovethief"]
[Black "Mikhail_Bryakin"]
[Result "1-0"]
[WhiteElo "2563"]
[BlackElo "2881"]
[TimeControl "180+1"]
[EndTime "8:54:35 PDT"]
[Termination "whiteglovethief won by resignation"]

1. d4 {[%clk 0:03:00.9]} 1... Nf6 {[%clk 0:02:50.4]} 2. c4 {[%clk 0:02:58.9]}
2... c5 {[%clk 0:02:50.3]} 3. d5 {[%clk 0:02:56.3]} 3... d6 {[%clk 0:02:46.7]}
4. Nc3 {[%clk 0:02:55.6]} 4... e6 {[%clk 0:02:46.8]} 5. e4 {[%clk 0:02:55.8]}
5... exd5 {[%clk 0:02:46.9]} 6. exd5 {[%clk 0:02:54.3]} 6... g6 {[%clk
0:02:45.5]} 7. Bd3 {[%clk 0:02:54.6]} 7... Bg7 {[%clk 0:02:42.3]} 8. Nf3 {[%clk
0:02:55]} 8... Bg4 {[%clk 0:02:36.5]} 9. O-O {[%clk 0:02:53.9]} 9... O-O {[%clk
0:02:34.9]} 10. h3 {[%clk 0:02:53.7]} 10... Bxf3 {[%clk 0:02:34.4]} 11. Qxf3
{[%clk 0:02:54.6]} 11... Nbd7 {[%clk 0:02:31.7]} 12. Bf4 {[%clk 0:02:53.3]}
12... Ne8 {[%clk 0:02:28.7]} 13. Rfe1 {[%clk 0:02:49.8]} 13... Ne5 {[%clk
0:02:28.8]} 14. Qg3 {[%clk 0:02:45]} 14... Nf6 {[%clk 0:02:17.1]} 15. Bxe5
{[%clk 0:02:20.1]} 15... Nh5 {[%clk 0:02:16.1]} 16. Bxg7 {[%clk 0:02:15.6]}
16... Nxg3 {[%clk 0:02:11.9]} 17. Bxf8 {[%clk 0:02:15.6]} 17... Qxf8 {[%clk
0:02:09.4]} 18. fxg3 {[%clk 0:02:14.8]} 18... Re8 {[%clk 0:02:03.6]} 19. Nb5
{[%clk 0:01:49.5]} 19... a6 {[%clk 0:01:48.7]} 20. Nc3 {[%clk 0:01:48.5]} 20...
Kg7 {[%clk 0:01:47.6]} 21. Kf2 {[%clk 0:01:42.9]} 21... Re7 {[%clk 0:01:46.8]}
22. a4 {[%clk 0:01:31.7]} 22... Qd8 {[%clk 0:01:45.9]} 23. Ne4 {[%clk
0:01:23.7]} 23... Re5 {[%clk 0:01:39.8]} 24. Re2 {[%clk 0:01:09.4]} 24... h6
{[%clk 0:01:31.4]} 25. Kg1 {[%clk 0:01:04.1]} 25... Qb6 {[%clk 0:01:23.8]} 26.
a5 {[%clk 0:00:58.2]} 26... Qb3 {[%clk 0:01:12.7]} 27. Nxc5 {[%clk 0:00:35.4]}
27... dxc5 {[%clk 0:01:04.3]} 28. Rxe5 {[%clk 0:00:34.9]} 28... Qxd3 {[%clk
0:01:05]} 29. Kh2 {[%clk 0:00:27.6]} 29... Qd4 {[%clk 0:00:55.4]} 30. Re7 {[%clk
0:00:24.6]} 30... Qxb2 {[%clk 0:00:51.5]} 31. Rf1 {[%clk 0:00:23.4]} 31... h5
{[%clk 0:00:46.3]} 32. Rfxf7+ {[%clk 0:00:23.3]} 32... Kh6 {[%clk 0:00:46.7]}
33. h4 {[%clk 0:00:22]} 33... g5 {[%clk 0:00:46.9]} 34. Re6+ {[%clk 0:00:21.5]}
1-0

[Event "Early-Titled-Tuesday-Blitz-April-02-2024"]
[Site "Chess.com"]
[Date "2024.04.02"]
[Round "5"]
[White "gpsji27"]
[Black "Dewarfd"]
[Result "1-0"]
[WhiteElo "2319"]
[BlackElo "2112"]
[TimeControl "180+1"]
[EndTime "8:54:39 PDT"]
[Termination "gpsji27 won on time"]

1. d4 {[%clk 0:03:00.9]} 1... Nf6 {[%clk 0:02:59.3]} 2. Nf3 {[%clk 0:02:59.9]}
2... g6 {[%clk 0:02:58.8]} 3. Nc3 {[%clk 0:02:59.6]} 3... d5 {[%clk 0:02:57.9]}
4. Bf4 {[%clk 0:02:54.7]} 4... Bg7 {[%clk 0:02:56.4]} 5. e3 {[%clk 0:02:54.4]}
5... O-O {[%clk 0:02:55.1]} 6. Be2 {[%clk 0:02:52.2]} 6... c5 {[%clk 0:02:45.7]}
7. Ne5 {[%clk 0:02:51.6]} 7... cxd4 {[%clk 0:02:30.6]} 8. exd4 {[%clk
0:02:52.5]} 8... Nc6 {[%clk 0:02:28.7]} 9. h4 {[%clk 0:02:43.7]} 9... h5 {[%clk
0:02:23.7]} 10. Qd2 {[%clk 0:01:54.9]} 10... Nxe5 {[%clk 0:01:18]} 11. Bxe5
{[%clk 0:01:48.6]} 11... Ne4 {[%clk 0:00:59.7]} 12. Nxe4 {[%clk 0:01:46.2]}
12... Bxe5 {[%clk 0:00:47.1]} 13. dxe5 {[%clk 0:01:07.5]} 13... dxe4 {[%clk
0:00:46.6]} 14. Qf4 {[%clk 0:01:08.4]} 14... Bf5 {[%clk 0:00:41.1]} 15. g4
{[%clk 0:00:52.1]} 15... Qa5+ {[%clk 0:00:30.6]} 16. c3 {[%clk 0:00:50.5]} 16...
Bxg4 {[%clk 0:00:28.8]} 17. Bxg4 {[%clk 0:00:49.5]} 17... hxg4 {[%clk
0:00:29.7]} 18. Qxe4 {[%clk 0:00:48.1]} 18... Rfd8 {[%clk 0:00:05.8]} 19. O-O
{[%clk 0:00:44.3]} 19... Qb6 {[%clk 0:00:03.2]} 20. Qxg4 {[%clk 0:00:41.9]}
20... Qxb2 {[%clk 0:00:01.2]} 21. e6 {[%clk 0:00:36.4]} 1-0

[Event "Early-Titled-Tuesday-Blitz-April-02-2024"]
[Site "Chess.com"]
[Date "2024.04.02"]
[Round "5"]
[White "Ginger_GM"]
[Black "Kotofeyca"]
[Result "1-0"]
[WhiteElo "2627"]
[BlackElo "2496"]
[TimeControl "180+1"]
[EndTime "8:54:41 PDT"]
[Termination "Ginger_GM won on time"]

1. e4 {[%clk 0:03:00.9]} 1... c5 {[%clk 0:02:59.5]} 2. Be2 {[%clk 0:02:59.8]}
2... Nc6 {[%clk 0:02:57.1]} 3. f4 {[%clk 0:02:59.3]} 3... g6 {[%clk 0:02:56.9]}
4. Nf3 {[%clk 0:02:59.2]} 4... Bg7 {[%clk 0:02:57.4]} 5. O-O {[%clk 0:02:59.2]}
5... e6 {[%clk 0:02:55.6]} 6. d3 {[%clk 0:02:58.6]} 6... d5 {[%clk 0:02:53.8]}
7. c3 {[%clk 0:02:53.1]} 7... Nge7 {[%clk 0:02:50.3]} 8. Na3 {[%clk 0:02:51.4]}
8... O-O {[%clk 0:02:49.3]} 9. Qe1 {[%clk 0:02:49.2]} 9... b6 {[%clk 0:02:45.8]}
10. Nc2 {[%clk 0:02:44.6]} 10... Ba6 {[%clk 0:02:43.7]} 11. Rb1 {[%clk
0:02:37.9]} 11... dxe4 {[%clk 0:02:43.5]} 12. dxe4 {[%clk 0:02:37.9]} 12... Bxe2
{[%clk 0:02:43.4]} 13. Qxe2 {[%clk 0:02:38.2]} 13... Qc7 {[%clk 0:02:38.6]} 14.
h4 {[%clk 0:02:33.3]} 14... h5 {[%clk 0:02:20.3]} 15. Ng5 {[%clk 0:02:24.8]}
15... Rfd8 {[%clk 0:02:16.6]} 16. Ne3 {[%clk 0:02:03.8]} 16... Qd6 {[%clk
0:02:01.8]} 17. f5 {[%clk 0:01:46.3]} 17... exf5 {[%clk 0:01:40.6]} 18. exf5
{[%clk 0:01:46.3]} 18... Nd5 {[%clk 0:01:07.2]} 19. fxg6 {[%clk 0:01:28.6]}
19... fxg6 {[%clk 0:01:06.8]} 20. Nf7 {[%clk 0:01:19.8]} 20... Qe7 {[%clk
0:00:52.7]} 21. Nxd8 {[%clk 0:01:17.9]} 21... Rxd8 {[%clk 0:00:52.9]} 22. Qf2
{[%clk 0:01:11.5]} 22... Rf8 {[%clk 0:00:44.6]} 23. Qg3 {[%clk 0:01:09.1]} 23...
Rxf1+ {[%clk 0:00:28.4]} 24. Nxf1 {[%clk 0:01:08.8]} 24... Qe4 {[%clk
0:00:23.4]} 25. Ra1 {[%clk 0:01:01.2]} 25... Be5 {[%clk 0:00:20]} 26. Qf3 {[%clk
0:01:01.3]} 26... Qc4 {[%clk 0:00:10.6]} 27. Nd2 {[%clk 0:00:53.7]} 27... Qf4
{[%clk 0:00:04.4]} 28. Qxd5+ {[%clk 0:00:51.8]} 28... Kg7 {[%clk 0:00:02.3]} 29.
Nf3 {[%clk 0:00:51.4]} 1-0

[Event "Early-Titled-Tuesday-Blitz-April-02-2024"]
[Site "Chess.com"]
[Date "2024.04.02"]
[Round "5"]
[White "Chernov_Alexander_A"]
[Black "AsaHoffmann"]
[Result "0-1"]
[WhiteElo "2210"]
[BlackElo "2400"]
[TimeControl "180+1"]
[EndTime "8:54:41 PDT"]
[Termination "AsaHoffmann won on time"]

1. d4 {[%clk 0:03:00.9]} 1... Nf6 {[%clk 0:02:56]} 2. Nf3 {[%clk 0:02:58.5]}
2... d6 {[%clk 0:02:53.5]} 3. Nc3 {[%clk 0:02:57.2]} 3... c6 {[%clk 0:02:49.9]}
4. e4 {[%clk 0:02:57.1]} 4... Bg4 {[%clk 0:02:49.3]} 5. Be2 {[%clk 0:02:55.4]}
5... e6 {[%clk 0:02:49.2]} 6. h3 {[%clk 0:02:53.8]} 6... Bh5 {[%clk 0:02:48.9]}
7. Nh4 {[%clk 0:02:47.5]} 7... Bxe2 {[%clk 0:02:37.9]} 8. Qxe2 {[%clk
0:02:47.5]} 8... Be7 {[%clk 0:02:36.9]} 9. Nf3 {[%clk 0:02:46.4]} 9... d5 {[%clk
0:02:36.3]} 10. O-O {[%clk 0:02:36.7]} 10... a6 {[%clk 0:02:30.3]} 11. Bf4
{[%clk 0:02:08.6]} 11... O-O {[%clk 0:02:29.3]} 12. Rad1 {[%clk 0:02:05.6]}
12... b5 {[%clk 0:02:23]} 13. e5 {[%clk 0:01:58.3]} 13... Nfd7 {[%clk
0:02:22.5]} 14. Nb1 {[%clk 0:01:52.7]} 14... c5 {[%clk 0:02:22.2]} 15. c3 {[%clk
0:01:52.2]} 15... Nc6 {[%clk 0:02:22.2]} 16. Rfe1 {[%clk 0:01:41.6]} 16... Rc8
{[%clk 0:02:15.5]} 17. Nbd2 {[%clk 0:01:37.1]} 17... c4 {[%clk 0:02:11.6]} 18.
Nf1 {[%clk 0:01:36.4]} 18... b4 {[%clk 0:02:10.9]} 19. Ng3 {[%clk 0:01:23.2]}
19... Qa5 {[%clk 0:02:08.7]} 20. Qe3 {[%clk 0:01:10.5]} 20... Qxa2 {[%clk
0:02:00.2]} 21. Nh5 {[%clk 0:01:01.9]} 21... Qxb2 {[%clk 0:01:53.3]} 22. Rc1
{[%clk 0:00:50.7]} 22... bxc3 {[%clk 0:01:51.1]} 23. Nh2 {[%clk 0:00:33]} 23...
c2 {[%clk 0:01:40.7]} 24. Nf3 {[%clk 0:00:18.2]} 24... Nb4 {[%clk 0:01:32.9]}
25. Bh6 {[%clk 0:00:15]} 25... g6 {[%clk 0:01:26]} 26. Bg5 {[%clk 0:00:08.8]}
26... Qb3 {[%clk 0:01:15.8]} 27. Qf4 {[%clk 0:00:08.1]} 27... Nd3 {[%clk
0:01:14.1]} 28. Qh4 {[%clk 0:00:07.9]} 28... Bb4 {[%clk 0:01:07.8]} 29. Nf6+
{[%clk 0:00:04.2]} 29... Nxf6 {[%clk 0:01:06.9]} 30. Bxf6 {[%clk 0:00:04.4]}
30... h5 {[%clk 0:01:04.4]} 31. Qg5 {[%clk 0:00:04.1]} 31... Kh7 {[%clk
0:01:02.7]} 32. Qh4 {[%clk 0:00:01.5]} 32... Rh8 {[%clk 0:01:01.8]} 33. Ng5+
{[%clk 0:00:01.4]} 33... Kg8 {[%clk 0:01:01.5]} 0-1

[Event "Early-Titled-Tuesday-Blitz-April-02-2024"]
[Site "Chess.com"]
[Date "2024.04.02"]
[Round "5"]
[White "tk22h"]
[Black "carloseduar100"]
[Result "1-0"]
[WhiteElo "2402"]
[BlackElo "2193"]
[TimeControl "180+1"]
[EndTime "8:54:43 PDT"]
[Termination "tk22h won by checkmate"]

1. c4 {[%clk 0:02:59.6]} 1... Nf6 {[%clk 0:02:54.8]} 2. Nc3 {[%clk 0:02:59.3]}
2... g6 {[%clk 0:02:50.5]} 3. e4 {[%clk 0:02:59.1]} 3... Bg7 {[%clk 0:02:51.4]}
4. d4 {[%clk 0:02:59.2]} 4... O-O {[%clk 0:02:52.3]} 5. Be2 {[%clk 0:02:59.1]}
5... d6 {[%clk 0:02:52.4]} 6. Bg5 {[%clk 0:02:58.7]} 6... c5 {[%clk 0:02:52.9]}
7. d5 {[%clk 0:02:57.8]} 7... a6 {[%clk 0:02:52.4]} 8. a4 {[%clk 0:02:57.4]}
8... a5 {[%clk 0:02:52.4]} 9. Qd2 {[%clk 0:02:55.5]} 9... Na6 {[%clk 0:02:52.5]}
10. Nf3 {[%clk 0:02:55.1]} 10... Nb4 {[%clk 0:02:52.8]} 11. O-O {[%clk
0:02:54.2]} 11... Bg4 {[%clk 0:02:31.5]} 12. Rfe1 {[%clk 0:02:52.3]} 12... Qd7
{[%clk 0:02:23.6]} 13. h3 {[%clk 0:02:49.1]} 13... Bxf3 {[%clk 0:02:23.6]} 14.
Bxf3 {[%clk 0:02:48.9]} 14... e6 {[%clk 0:02:24.5]} 15. Rad1 {[%clk 0:02:34.1]}
15... exd5 {[%clk 0:02:24.6]} 16. exd5 {[%clk 0:02:32.7]} 16... Rfe8 {[%clk
0:02:24.6]} 17. b3 {[%clk 0:02:29.8]} 17... Qf5 {[%clk 0:02:24.2]} 18. Bf4
{[%clk 0:02:16.6]} 18... Rxe1+ {[%clk 0:02:06.2]} 19. Rxe1 {[%clk 0:02:16]}
19... Qd3 {[%clk 0:02:06.7]} 20. Rd1 {[%clk 0:01:59.7]} 20... Qxd2 {[%clk
0:01:55.8]} 21. Bxd2 {[%clk 0:01:59.5]} 21... Re8 {[%clk 0:01:46.4]} 22. Nb5
{[%clk 0:01:59]} 22... Bf8 {[%clk 0:01:29.2]} 23. Bf4 {[%clk 0:01:58.7]} 23...
Ne4 {[%clk 0:00:48.7]} 24. Bxe4 {[%clk 0:01:56]} 24... Rxe4 {[%clk 0:00:48.4]}
25. Bxd6 {[%clk 0:01:56.1]} 25... b6 {[%clk 0:00:20.3]} 26. Bxf8 {[%clk
0:01:47.4]} 26... Kxf8 {[%clk 0:00:21.2]} 27. Rd2 {[%clk 0:01:47.5]} 27... Re1+
{[%clk 0:00:19.6]} 28. Kh2 {[%clk 0:01:47.5]} 28... Rb1 {[%clk 0:00:19]} 29. d6
{[%clk 0:01:47.1]} 29... Rxb3 {[%clk 0:00:18.5]} 30. d7 {[%clk 0:01:46.2]} 30...
Nc6 {[%clk 0:00:18.8]} 31. d8=Q+ {[%clk 0:01:44.5]} 31... Nxd8 {[%clk
0:00:18.8]} 32. Rxd8+ {[%clk 0:01:44.7]} 32... Kg7 {[%clk 0:00:19.2]} 33. Rb8
{[%clk 0:01:44.7]} 33... Rb4 {[%clk 0:00:19.3]} 34. Rxb6 {[%clk 0:01:44.6]}
34... Rxa4 {[%clk 0:00:19.7]} 35. Nd6 {[%clk 0:01:43.7]} 35... Ra2 {[%clk
0:00:18.3]} 36. Kg3 {[%clk 0:01:41.6]} 36... Ra3+ {[%clk 0:00:17.8]} 37. f3
{[%clk 0:01:41.6]} 37... Rd3 {[%clk 0:00:17.7]} 38. Ne4 {[%clk 0:01:40.7]} 38...
Rd4 {[%clk 0:00:16.5]} 39. Nxc5 {[%clk 0:01:40.4]} 39... Rxc4 {[%clk 0:00:16.8]}
40. Rb5 {[%clk 0:01:39]} 40... a4 {[%clk 0:00:16.6]} 41. Ra5 {[%clk 0:01:39.1]}
41... h5 {[%clk 0:00:16.5]} 42. Nxa4 {[%clk 0:01:37.2]} 42... h4+ {[%clk
0:00:15.4]} 43. Kh2 {[%clk 0:01:37.3]} 43... Rc2 {[%clk 0:00:15.6]} 44. Nb6
{[%clk 0:01:36.7]} 44... f6 {[%clk 0:00:11.9]} 45. Ra7+ {[%clk 0:01:35.9]} 45...
Kh6 {[%clk 0:00:12.1]} 46. Nd7 {[%clk 0:01:35.6]} 46... Rc6 {[%clk 0:00:12.3]}
47. Nf8 {[%clk 0:01:27]} 47... g5 {[%clk 0:00:12.1]} 48. Rh7# {[%clk 0:01:25]}
1-0

[Event "Early-Titled-Tuesday-Blitz-April-02-2024"]
[Site "Chess.com"]
[Date "2024.04.02"]
[Round "5"]
[White "BashiqChess"]
[Black "Aradhya2000"]
[Result "1/2-1/2"]
[WhiteElo "2491"]
[BlackElo "2752"]
[TimeControl "180+1"]
[EndTime "8:54:44 PDT"]
[Termination "Game drawn by repetition"]

1. Nf3 {[%clk 0:03:00.9]} 1... Nf6 {[%clk 0:02:59.7]} 2. b3 {[%clk 0:03:01]}
2... d5 {[%clk 0:02:57.9]} 3. Bb2 {[%clk 0:03:00.2]} 3... Bf5 {[%clk 0:02:57.9]}
4. g3 {[%clk 0:03:00.4]} 4... e6 {[%clk 0:02:57.6]} 5. Bg2 {[%clk 0:03:00.8]}
5... Be7 {[%clk 0:02:58]} 6. O-O {[%clk 0:02:59.9]} 6... h6 {[%clk 0:02:58.5]}
7. d3 {[%clk 0:03:00.3]} 7... O-O {[%clk 0:02:58.9]} 8. Nbd2 {[%clk 0:03:00.8]}
8... c6 {[%clk 0:02:57.3]} 9. c4 {[%clk 0:02:58.7]} 9... Nbd7 {[%clk 0:02:57.2]}
10. a3 {[%clk 0:02:58.7]} 10... a5 {[%clk 0:02:56.8]} 11. Qc2 {[%clk 0:02:58.9]}
11... Re8 {[%clk 0:02:55.9]} 12. e4 {[%clk 0:02:55.4]} 12... dxe4 {[%clk
0:02:55.7]} 13. dxe4 {[%clk 0:02:56.3]} 13... Bg6 {[%clk 0:02:56.1]} 14. Ne5
{[%clk 0:02:42.4]} 14... Nxe5 {[%clk 0:02:54.7]} 15. Bxe5 {[%clk 0:02:43.3]}
15... Nd7 {[%clk 0:02:40.7]} 16. Bc3 {[%clk 0:02:33.3]} 16... Nc5 {[%clk
0:02:34.1]} 17. Rad1 {[%clk 0:02:11.8]} 17... Qd3 {[%clk 0:01:59.2]} 18. Qb2
{[%clk 0:01:57.1]} 18... Bh5 {[%clk 0:01:59.3]} 19. Bxg7 {[%clk 0:01:11.6]}
19... Bxd1 {[%clk 0:01:57.4]} 20. Bxh6 {[%clk 0:01:11.6]} 20... Bf8 {[%clk
0:00:58.2]} 21. Bxf8 {[%clk 0:01:07.9]} 21... Rxf8 {[%clk 0:00:58.1]} 22. Rxd1
{[%clk 0:01:06.8]} 22... Rad8 {[%clk 0:00:50.4]} 23. Qe5 {[%clk 0:00:33.1]}
23... Qd4 {[%clk 0:00:47.2]} 24. Qg5+ {[%clk 0:00:30]} 24... Kh8 {[%clk
0:00:47]} 25. Qh5+ {[%clk 0:00:15.3]} 25... Kg7 {[%clk 0:00:46.6]} 26. Qg5+
{[%clk 0:00:08.9]} 26... Kh8 {[%clk 0:00:45.8]} 27. Qh5+ {[%clk 0:00:09.5]}
27... Kg7 {[%clk 0:00:45.7]} 28. Qg5+ {[%clk 0:00:10.1]} 28... Kh7 {[%clk
0:00:45.4]} 29. Qh5+ {[%clk 0:00:10.7]} 29... Kg7 {[%clk 0:00:45.5]} 1/2-1/2